Workbook

Sheet PV Field Calculator
B1: Project Name :
B2: Customer :
B3: Date :
A5: 1. Module features
B7: Height : | E7: =$AM$37&" :" -> Junction Box : | F7: Single
B8: Width : | E8: =$AN$37&" :" -> Rear support bar(s) : | F8: NON
B9: Thickness :
A10: 2. Components data : Tray(s) & clamps references
C12: =AM41 -> Portrait | D12: =AM42 -> Landscape
B13: GSE references | C13: Tray(s) selection | D13: Tray(s) selection
B14: Clamps | C14: =INDEX(rech_etrier,MATCH($C$13,Ref_plaques,0),MATCH($C$9,Epaisseur_module__mm,0)) ->  | D14: =INDEX(rech_etrier,MATCH($D$13,Ref_plaques,0),MATCH($C$9,Epaisseur_module__mm,0)) -> 
B15: Ref. Height (mm) | C15: =VLOOKUP($C$13,base_po,7,0) ->  | D15: =VLOOKUP($D$13,base_pa,7,0) -> 
B16: Ref. Width (mm) | C16: =VLOOKUP($C$13,base_po,8,0) ->  | D16: =VLOOKUP($D$13,base_pa,8,0) -> 
B17: Graduation (mm) | C17: =IF((C7-C15)>0,MROUND(C7-C15,5)*Ajust_haut,0) ->  | D17: =IF((C8-D15)>0,MROUND(C8-D15,5),0) -> 
B18: Rows spacing (mm) | C18: =10-(C7-MROUND(C15,5)-C17/Ajust_haut) ->  | D18: =10-(C8-MROUND(D15,5)-D17) -> 
A20: 3. PV-Field data
B22: Configuration | C22: Rows | D22: Columns
B23: Portrait
B25: Field dimensions
D26: Height (m)
B27: GSE plates only (A+B) | D27: =IFERROR(((MROUND(HLOOKUP($B$23,données_plaques,4,0),5)+HLOOKUP($B$23,données_plaques,6,0)/Ajust_haut+10)*$C$23+(Haut_Plaque-HLOOKUP($B$23,données_plaques,6,0)))/1000,"") -> 
B28: Layout to the gutter (A+B+C+D) | D28: =IFERROR(D27+0.15+0.05,"") -> 
B29: Layout in the center (A+B+C+D+E) | D29: =IFERROR(D28+0.1,"") -> 
D30: Length (m)
B31: GSE plates only (≈F) | D31: =IFERROR(((HLOOKUP($B$23,données_plaques,5,0)+Pas_ondes)*$D$23+débord_ondes)/1000,"") -> 
B32: w/ lateral flashings (F+2G) | D32: =IFERROR(((HLOOKUP($B$23,données_plaques,5,0)+Pas_ondes)*$D$23+172*2)/1000,"") -> 
E36: -50 | F36: 100 | G36: -4 | H36: 0 | R36: Etriers
D37: Référence | E37: Tolérances dimensionnelles | J37: Dimensions de référence de la plaque GSE | R37: Epaisseur module (mm) | AM37: Junction Box | AN37: Rear support bar(s) | AO37: =L38 -> Pas ondes | AP37: =M38 -> Débord ondes | AQ37: Ajust_haut | AR37: Haut_Plaque
A38: Base Plaque | D38: PLAQUE | E38: HAUTEUR MINIMUM | F38: HAUTEUR MAXIMUM | G38: LARGEUR MINIMUM | H38: LARGEUR MAXIMUM | J38: Hauteur ref | K38: Larg ref | L38: Pas ondes | M38: Débord ondes | N38: Ajust_haut | O38: Haut plaque | R38: 30 | S38: 31 | T38: 32 | U38: 33 | V38: 34 | W38: 35 | X38: 36 | Y38: 37 | Z38: 38 | AA38: 39 | AB38: 40 | AC38: 41 | AD38: 42 | AE38: 43 | AF38: 44 | AG38: 45 | AH38: 46 | AI38: 47 | AJ38: 48 | AK38: 49 | AL38: 50 | AM38: Single | AN38: OUI | AO38: =IF($B$23=$AM$41,VLOOKUP($C$13,base_po,9,0),VLOOKUP($D$13,base_pa,9,0)) ->  | AP38: =IF($B$23=$AM$41,VLOOKUP($C$13,base_po,10,0),VLOOKUP($D$13,base_pa,10,0)) ->  | AQ38: =IF($B$23=$AM$41,VLOOKUP($C$13,base_po,11,0),VLOOKUP($D$13,base_pa,11,0)) ->  | AR38: =IF($B$23=$AM$41,VLOOKUP($C$13,base_po,12,0),VLOOKUP($D$13,base_pa,12,0)) -> 
B39: ="OK"&IF(C39="faux",0,COUNTIF($C$39:C39,C39)) -> OK0 | C39: =IF($F$8=$AN$38,"FAUX",IF($F$7=$AM$39,"FAUX",IF(AND($C$7>=E39,$C$7<=F39,$C$8>=G39,$C$8<=H39,$C$9>=35),"OK","FAUX"))) -> FAUX | D39: ="Po_"&J39&"_"&K39 -> Po_1575_1046 | E39: =$J39+E$36 -> 1525 | F39: =$J39+F$36 -> 1675 | G39: =$K39+G$36 -> 1042 | H39: =$K39+H$36 -> 1046 | J39: 1575 | K39: 1046 | L39: 36.5 | M39: 30 | N39: 1 | O39: 160 | P39: PORTRAIT | W39: H16 | X39: H16 | Y39: H16 | Z39: H19 | AA39: H19 | AB39: H21 | AC39: H21 | AD39: H23 | AE39: H23 | AF39: H23 | AG39: H26 | AH39: H26 | AI39: H27 | AJ39: H27 | AL39: H31 | AM39: Split | AN39: NON
B40: ="OK"&IF(C40="faux",0,COUNTIF($C$39:C40,C40)) -> OK0 | C40: FAUX | D40: ="Po_"&J40&"_"&K40 -> Po_1575_1053 | E40: =$J40+E$36 -> 1525 | F40: =$J40+F$36 -> 1675 | G40: =$K40+G$36 -> 1049 | H40: =$K40+H$36 -> 1053 | J40: 1575 | K40: 1053 | L40: 36.5 | M40: 30 | N40: 1 | O40: 160 | W40: H16 | X40: H16 | Y40: H16 | Z40: H19 | AA40: H19 | AB40: H21 | AC40: H21 | AD40: H23 | AE40: H23 | AF40: H23 | AG40: H26 | AH40: H26 | AI40: H27 | AJ40: H27 | AL40: H31
B41: ="OK"&IF(C41="faux",0,COUNTIF($C$39:C41,C41)) -> OK0 | C41: FAUX | D41: Po_1575_1082 | E41: 1525 | F41: 1675 | G41: 1078 | H41: =$K41+H$36 -> 1082 | J41: 1575 | K41: 1082 | L41: 36.5 | M41: 30 | N41: 1 | O41: 160 | W41: H16 | X41: H16 | Y41: H16 | Z41: H19 | AA41: H19 | AB41: H21 | AC41: H21 | AD41: H23 | AE41: H23 | AF41: H23 | AG41: H26 | AH41: H26 | AI41: H27 | AJ41: H27 | AL41: H31 | AM41: Portrait
B42: ="OK"&IF(C42="faux",0,COUNTIF($C$39:C42,C42)) -> OK0 | C42: FAUX | D42: Po_1580_808 | E42: 1530 | F42: 1680 | G42: 804 | H42: 808 | J42: 1580 | K42: 808 | L42: 36.5 | M42: 30 | N42: 1 | O42: 160 | W42: H16 | X42: H16 | Y42: H16 | Z42: H19 | AA42: H19 | AB42: H21 | AC42: H21 | AD42: H23 | AE42: H23 | AF42: H23 | AG42: H26 | AH42: H26 | AI42: H27 | AJ42: H27 | AL42: H31 | AM42: Landscape
B43: ="OK"&IF(C43="faux",0,COUNTIF($C$39:C43,C43)) -> OK0 | C43: FAUX | D43: Po_1640_992 | E43: 1590 | F43: 1740 | G43: 988 | H43: 992 | J43: 1640 | K43: 992 | L43: 36.5 | M43: 30 | N43: 1 | O43: 160 | W43: H16 | X43: H16 | Y43: H16 | Z43: H19 | AA43: H19 | AB43: H21 | AC43: H21 | AD43: H23 | AE43: H23 | AF43: H23 | AG43: H26 | AH43: H26 | AI43: H27 | AJ43: H27 | AL43: H31
B44: ="OK"&IF(C44="faux",0,COUNTIF($C$39:C44,C44)) -> OK0 | C44: FAUX | D44: Po_1640_1001 | E44: 1590 | F44: 1740 | G44: 997 | H44: 1001 | J44: 1640 | K44: 1001 | L44: 36.5 | M44: 30 | N44: 1 | O44: 160 | W44: H16 | X44: H16 | Y44: H16 | Z44: H19 | AA44: H19 | AB44: H21 | AC44: H21 | AD44: H23 | AE44: H23 | AF44: H23 | AG44: H26 | AH44: H26 | AI44: H27 | AJ44: H27 | AL44: H31
B45: ="OK"&IF(C45="faux",0,COUNTIF($C$39:C45,C45)) -> OK0 | C45: =IF($F$8=$AN$38,"FAUX",IF($F$7=$AM$39,"FAUX",IF(AND($C$7>=E45,$C$7<=F45,$C$8>=G45,$C$8<=H45,$C$9>=32),"OK","FAUX"))) -> FAUX | D45: ="Po_"&J45&"_"&K45&" P33" -> Po_1640_1001 P33 | E45: 1590 | F45: 1740 | G45: 997 | H45: 1001 | J45: 1640 | K45: 1001 | L45: 36.5 | M45: 30 | N45: 1 | O45: 160 | T45: H16 | U45: H16 | V45: H16 | W45: H19 | X45: H19 | Y45: H21 | Z45: H21 | AA45: H23 | AB45: H23 | AC45: H23 | AD45: H26 | AE45: H26 | AF45: H27 | AG45: H27 | AI45: H31 | AJ45: H31 | AK45: H31
B46: ="OK"&IF(C46="faux",0,COUNTIF($C$39:C46,C46)) -> OK0 | C46: =IF($F$8=$AN$38,"FAUX",IF($F$7=$AM$39,"FAUX",IF(AND($C$7>=E46,$C$7<=F46,$C$8>=G46,$C$8<=H46,$C$9>=35),"OK","FAUX"))) -> FAUX | D46: Po_1685_1016 | E46: 1635 | F46: =$J46+F$36-30 -> 1755 | G46: 1012 | H46: 1016 | J46: 1685 | K46: 1016 | L46: 36.5 | M46: 30 | N46: 1 | O46: 160 | W46: H16 | X46: H16 | Y46: H16 | Z46: H19 | AA46: H19 | AB46: H21 | AC46: H21 | AD46: H23 | AE46: H23 | AF46: H23 | AG46: H26 | AH46: H26 | AI46: H27 | AJ46: H27 | AL46: H31
B47: ="OK"&IF(C47="faux",0,COUNTIF($C$39:C47,C47)) -> OK0 | C47: =IF(AND($C$7>=E47,$C$7<=F47,$C$8>=G47,$C$8<=H47,$C$9>=30),"OK","FAUX") -> FAUX | D47: Po_1710_995 | E47: 1660 | F47: =$J47+F$36-30 -> 1780 | G47: =$K47+G$36 -> 991 | H47: 995 | J47: 1710 | K47: 995 | L47: 36.5 | M47: 30 | N47: 1 | O47: 130 | R47: H16 | S47: H16 | T47: H16 | U47: H19 | V47: H19 | W47: H21 | X47: H21 | Y47: H23 | Z47: H23 | AA47: H23 | AB47: H26 | AC47: H26 | AD47: H27 | AE47: H27 | AG47: H31 | AH47: H31 | AI47: H31
B48: ="OK"&IF(C48="faux",0,COUNTIF($C$39:C48,C48)) -> OK0 | C48: =IF(AND($C$7>=E48,$C$7<=F48,$C$8>=G48,$C$8<=H48,$C$9>=30),"OK","FAUX") -> FAUX | D48: Po_1710_1000 | E48: 1660 | F48: =$J48+F$36-30 -> 1780 | G48: =$K48+G$36 -> 996 | H48: 1000 | J48: 1710 | K48: 1000 | L48: 36.5 | M48: 30 | N48: 1 | O48: 130 | R48: H16 | S48: H16 | T48: H16 | U48: H19 | V48: H19 | W48: H21 | X48: H21 | Y48: H23 | Z48: H23 | AA48: H23 | AB48: H26 | AC48: H26 | AD48: H27 | AE48: H27 | AG48: H31 | AH48: H31 | AI48: H31
B49: ="OK"&IF(C49="faux",0,COUNTIF($C$39:C49,C49)) -> OK0 | C49: FAUX | D49: Po_1710_1005 | E49: 1660 | F49: 1780 | G49: =$K49+G$36 -> 1001 | H49: 1005 | J49: 1710 | K49: 1005 | L49: 36.5 | M49: 30 | N49: 1 | O49: 130 | R49: H16 | S49: H16 | T49: H16 | U49: H19 | V49: H19 | W49: H21 | X49: H21 | Y49: H23 | Z49: H23 | AA49: H23 | AB49: H26 | AC49: H26 | AD49: H27 | AE49: H27 | AG49: H31 | AH49: H31 | AI49: H31
B50: ="OK"&IF(C50="faux",0,COUNTIF($C$39:C50,C50)) -> OK0 | C50: =IF(AND($C$7>=E50,$C$7<=F50,$C$8>=G50,$C$8<=H50,$C$9>=30),"OK","FAUX") -> FAUX | D50: Po_1710_1010 | E50: 1660 | F50: 1780 | G50: 1006 | H50: 1010 | J50: 1710 | K50: 1010 | L50: 36.5 | M50: 30 | N50: 1 | O50: 130 | R50: H16 | S50: H16 | T50: H16 | U50: H19 | V50: H19 | W50: H21 | X50: H21 | Y50: H23 | Z50: H23 | AA50: H23 | AB50: H26 | AC50: H26 | AD50: H27 | AE50: H27 | AG50: H31 | AH50: H31 | AI50: H31
B51: ="OK"&IF(C51="faux",0,COUNTIF($C$39:C51,C51)) -> OK0 | C51: FAUX | D51: Po_1710_1020 | E51: 1660 | F51: 1780 | G51: 1016 | H51: 1020 | J51: 1710 | K51: 1020 | L51: 36.5 | M51: 30 | N51: 1 | O51: 130 | R51: H16 | S51: H16 | T51: H16 | U51: H19 | V51: H19 | W51: H21 | X51: H21 | Y51: H23 | Z51: H23 | AA51: H23 | AB51: H26 | AC51: H26 | AD51: H27 | AE51: H27 | AG51: H31 | AH51: H31 | AI51: H31
B52: ="OK"&IF(C52="faux",0,COUNTIF($C$39:C52,C52)) -> OK0 | C52: FAUX | D52: Po_1710_1025 | E52: 1660 | F52: 1780 | G52: 1021 | H52: 1025 | J52: 1710 | K52: 1025 | L52: 36.5 | M52: 30 | N52: 1 | O52: 130 | R52: H16 | S52: H16 | T52: H16 | U52: H19 | V52: H19 | W52: H21 | X52: H21 | Y52: H23 | Z52: H23 | AA52: H23 | AB52: H26 | AC52: H26 | AD52: H27 | AE52: H27 | AG52: H31 | AH52: H31 | AI52: H31
B53: ="OK"&IF(C53="faux",0,COUNTIF($C$39:C53,C53)) -> OK0 | C53: FAUX | D53: Po_1710_1030 | E53: 1660 | F53: 1780 | G53: 1026 | H53: 1030 | J53: 1710 | K53: 1030 | L53: 36.5 | M53: 30 | N53: 1 | O53: 130 | R53: H16 | S53: H16 | T53: H16 | U53: H19 | V53: H19 | W53: H21 | X53: H21 | Y53: H23 | Z53: H23 | AA53: H23 | AB53: H26 | AC53: H26 | AD53: H27 | AE53: H27 | AG53: H31 | AH53: H31 | AI53: H31
B54: ="OK"&IF(C54="faux",0,COUNTIF($C$39:C54,C54)) -> OK0 | C54: FAUX | D54: Po_1710_1040 | E54: 1660 | F54: 1780 | G54: 1036 | H54: 1040 | J54: 1710 | K54: 1040 | L54: 36.5 | M54: 30 | N54: 1 | O54: 130 | R54: H16 | S54: H16 | T54: H16 | U54: H19 | V54: H19 | W54: H21 | X54: H21 | Y54: H23 | Z54: H23 | AA54: H23 | AB54: H26 | AC54: H26 | AD54: H27 | AE54: H27 | AG54: H31 | AH54: H31 | AI54: H31
B55: ="OK"&IF(C55="faux",0,COUNTIF($C$39:C55,C55)) -> OK0 | C55: FAUX | D55: Po_1710_1050 | E55: 1660 | F55: 1780 | G55: 1046 | H55: 1050 | J55: 1710 | K55: 1050 | L55: 36.5 | M55: 30 | N55: 1 | O55: 130 | R55: H16 | S55: H16 | T55: H16 | U55: H19 | V55: H19 | W55: H21 | X55: H21 | Y55: H23 | Z55: H23 | AA55: H23 | AB55: H26 | AC55: H26 | AD55: H27 | AE55: H27 | AG55: H31 | AH55: H31 | AI55: H31
B56: ="OK"&IF(C56="faux",0,COUNTIF($C$39:C56,C56)) -> OK0 | C56: =IF(AND($C$7>=E56,$C$7<=F56,$C$8>=G56,$C$8<=H56,$C$9>=30),"OK","FAUX") -> FAUX | D56: Po_1710_1055 | E56: 1660 | F56: 1780 | G56: 1051 | H56: 1055 | J56: 1710 | K56: 1055 | L56: 36.5 | M56: 30 | N56: 1 | O56: 130 | R56: H16 | S56: H16 | T56: H16 | U56: H19 | V56: H19 | W56: H21 | X56: H21 | Y56: H23 | Z56: H23 | AA56: H23 | AB56: H26 | AC56: H26 | AD56: H27 | AE56: H27 | AG56: H31 | AH56: H31 | AI56: H31
B57: ="OK"&IF(C57="faux",0,COUNTIF($C$39:C57,C57)) -> OK0 | D57: Po_1710_1060 | E57: 1660 | F57: 1780 | G57: 1056 | H57: 1060 | J57: 1710 | K57: 1060 | L57: 36.5 | M57: 30 | N57: 1 | O57: 130 | R57: H16 | S57: H16 | T57: H16 | U57: H19 | V57: H19 | W57: H21 | X57: H21 | Y57: H23 | Z57: H23 | AA57: H23 | AB57: H26 | AC57: H26 | AD57: H27 | AE57: H27 | AG57: H31 | AH57: H31 | AI57: H31
E60: -80 | F60: 150 | G60: -4 | H60: 0
B61: ="OK"&IF(C61="faux",0,COUNTIF($C$39:C61,C61)) -> OK0 | C61: =IF(AND($C$7>=E61,$C$7<=F61,$C$8>=G61,$C$8<=H61,$C$9>=30),"OK","FAUX") -> FAUX | D61: ="Dpo_"&J61&"_"&K61 -> Dpo_1650_995 | E61: =$J61+E$60 -> 1570 | F61: =$J61+F$60 -> 1800 | G61: =$K61+G$60 -> 991 | H61: =$K61+H$60 -> 995 | J61: 1650 | K61: 995 | L61: 40 | M61: 33 | N61: 0.5 | O61: 160 | R61: H16 | S61: H16 | T61: H16 | U61: H19 | V61: H19 | W61: H21 | X61: H21 | Y61: H23 | Z61: H23 | AA61: H23 | AB61: H26 | AC61: H26 | AD61: H27 | AE61: H27 | AG61: H31 | AH61: H31 | AI61: H31
B62: ="OK"&IF(C62="faux",0,COUNTIF($C$39:C62,C62)) -> OK0 | C62: FAUX | D62: ="Dpo_"&J62&"_"&K62 -> Dpo_1650_1070 | E62: =$J62+E$60 -> 1570 | F62: 1800 | G62: =$K62+G$60 -> 1066 | H62: 1070 | J62: 1650 | K62: 1070 | L62: 40 | M62: 33 | N62: 0.5 | O62: 160 | R62: H16 | S62: H16 | T62: H16 | U62: H19 | V62: H19 | W62: H21 | X62: H21 | Y62: H23 | Z62: H23 | AA62: H23 | AB62: H26 | AC62: H26 | AD62: H27 | AE62: H27 | AG62: H31 | AH62: H31 | AI62: H31
B63: ="OK"&IF(C63="faux",0,COUNTIF($C$39:C63,C63)) -> OK0 | C63: FAUX | D63: Dpo_1650_1100 | E63: 1570 | F63: 1800 | G63: 1096 | H63: 1100 | J63: 1650 | K63: 1100 | L63: 40 | M63: 33 | N63: 0.5 | O63: 160 | R63: H16 | S63: H16 | T63: H16 | U63: H19 | V63: H19 | W63: H21 | X63: H21 | Y63: H23 | Z63: H23 | AA63: H23 | AB63: H26 | AC63: H26 | AD63: H27 | AE63: H27 | AG63: H31 | AH63: H31 | AI63: H31
B64: ="OK"&IF(C64="faux",0,COUNTIF($C$39:C64,C64)) -> OK0 | C64: FAUX | D64: Dpo_1650_1135 | E64: 1570 | F64: 1800 | G64: 1131 | H64: 1135 | J64: 1650 | K64: 1135 | L64: 40 | M64: 33 | N64: 0.5 | O64: 160 | R64: H16 | S64: H16 | T64: H16 | U64: H19 | V64: H19 | W64: H21 | X64: H21 | Y64: H23 | Z64: H23 | AA64: H23 | AB64: H26 | AC64: H26 | AD64: H27 | AE64: H27 | AG64: H31 | AH64: H31 | AI64: H31
B65: ="OK"&IF(C65="faux",0,COUNTIF($C$39:C65,C65)) -> OK0 | C65: FAUX | D65: Dpo_1650_1140 | E65: 1570 | F65: 1800 | G65: 1136 | H65: 1140 | J65: 1650 | K65: 1140 | L65: 40 | M65: 33 | N65: 0.5 | O65: 160 | R65: H16 | S65: H16 | T65: H16 | U65: H19 | V65: H19 | W65: H21 | X65: H21 | Y65: H23 | Z65: H23 | AA65: H23 | AB65: H26 | AC65: H26 | AD65: H27 | AE65: H27 | AG65: H31 | AH65: H31 | AI65: H31
B66: ="OK"&IF(C66="faux",0,COUNTIF($C$39:C66,C66)) -> OK0 | C66: FAUX | D66: Dpo_1650_1160 | E66: 1570 | F66: 1800 | G66: 1156 | H66: 1160 | J66: 1650 | K66: 1160 | L66: 40 | M66: 33 | N66: 0.5 | O66: 160 | R66: H16 | S66: H16 | T66: H16 | U66: H19 | V66: H19 | W66: H21 | X66: H21 | Y66: H23 | Z66: H23 | AA66: H23 | AB66: H26 | AC66: H26 | AD66: H27 | AE66: H27 | AG66: H31 | AH66: H31 | AI66: H31
B67: ="OK"&IF(C67="faux",0,COUNTIF($C$39:C67,C67)) -> OK0 | C67: FAUX | D67: Dpo_1840_995 | E67: 1760 | F67: 1990 | G67: 991 | H67: 995 | J67: 1840 | K67: 995 | L67: 40 | M67: 33 | N67: 0.5 | O67: 160 | R67: H16 | S67: H16 | T67: H16 | U67: H19 | V67: H19 | W67: H21 | X67: H21 | Y67: H23 | Z67: H23 | AA67: H23 | AB67: H26 | AC67: H26 | AD67: H27 | AE67: H27 | AG67: H31 | AH67: H31 | AI67: H31
B68: ="OK"&IF(C68="faux",0,COUNTIF($C$39:C68,C68)) -> OK0 | C68: FAUX | D68: Dpo_1840_1020 | E68: 1760 | F68: 1990 | G68: 1016 | H68: 1020 | J68: 1840 | K68: 1020 | L68: 40 | M68: 33 | N68: 0.5 | O68: 160 | R68: H16 | S68: H16 | T68: H16 | U68: H19 | V68: H19 | W68: H21 | X68: H21 | Y68: H23 | Z68: H23 | AA68: H23 | AB68: H26 | AC68: H26 | AD68: H27 | AE68: H27 | AG68: H31 | AH68: H31 | AI68: H31
B69: ="OK"&IF(C69="faux",0,COUNTIF($C$39:C69,C69)) -> OK0 | C69: FAUX | D69: Dpo_1840_1030 | E69: 1760 | F69: 1990 | G69: 1026 | H69: 1030 | J69: 1840 | K69: 1030 | L69: 40 | M69: 33 | N69: 0.5 | O69: 160 | R69: H16 | S69: H16 | T69: H16 | U69: H19 | V69: H19 | W69: H21 | X69: H21 | Y69: H23 | Z69: H23 | AA69: H23 | AB69: H26 | AC69: H26 | AD69: H27 | AE69: H27 | AG69: H31 | AH69: H31 | AI69: H31
B70: ="OK"&IF(C70="faux",0,COUNTIF($C$39:C70,C70)) -> OK0 | C70: FAUX | D70: Dpo_1840_1070 | E70: 1760 | F70: 1990 | G70: 1066 | H70: 1070 | J70: 1840 | K70: 1070 | L70: 40 | M70: 33 | N70: 0.5 | O70: 160 | R70: H16 | S70: H16 | T70: H16 | U70: H19 | V70: H19 | W70: H21 | X70: H21 | Y70: H23 | Z70: H23 | AA70: H23 | AB70: H26 | AC70: H26 | AD70: H27 | AE70: H27 | AG70: H31 | AH70: H31 | AI70: H31
B71: ="OK"&IF(C71="faux",0,COUNTIF($C$39:C71,C71)) -> OK0 | C71: FAUX | D71: Dpo_1840_1135 | E71: 1760 | F71: 1990 | G71: 1131 | H71: 1135 | J71: 1840 | K71: 1135 | L71: 40 | M71: 33 | N71: 0.5 | O71: 160 | R71: H16 | S71: H16 | T71: H16 | U71: H19 | V71: H19 | W71: H21 | X71: H21 | Y71: H23 | Z71: H23 | AA71: H23 | AB71: H26 | AC71: H26 | AD71: H27 | AE71: H27 | AG71: H31 | AH71: H31 | AI71: H31
B73: ="OK"&IF(C73="faux",0,COUNTIF($C$73:C73,C73)) -> OK0 | C73: =IF($F$8=$AN$38,"FAUX",IF($F$7=$AM$39,"FAUX",IF(AND($C$8>=E73,$C$8<=F73,$C$7>=G73,$C$7<=H73,$C$9>=35),"OK","FAUX"))) -> FAUX | D73: ="Pa_"&K73&"_"&J73 -> Pa_1559_1082 | E73: 1032 | F73: =$J73+F$36 -> 1182 | G73: =$K73+G$36 -> 1555 | H73: 1559 | J73: 1082 | K73: 1559 | L73: 36.5 | M73: 30 | N73: 1 | O73: 160 | P73: PAYSAGE | W73: H16 | X73: H16 | Y73: H16 | Z73: H19 | AA73: H19 | AB73: H21 | AC73: H21 | AD73: H23 | AE73: H23 | AF73: H23 | AG73: H26 | AH73: H26 | AI73: H27 | AJ73: H27 | AL73: H31
B74: ="OK"&IF(C74="faux",0,COUNTIF($C$73:C74,C74)) -> OK0 | C74: FAUX | D74: ="Pa_"&K74&"_"&J74 -> Pa_1575_1082 | E74: 1032 | F74: 1182 | G74: 1571 | H74: 1575 | J74: 1082 | K74: 1575 | L74: 36.5 | M74: 30 | N74: 1 | O74: 160 | W74: H16 | X74: H16 | Y74: H16 | Z74: H19 | AA74: H19 | AB74: H21 | AC74: H21 | AD74: H23 | AE74: H23 | AF74: H23 | AG74: H26 | AH74: H26 | AI74: H27 | AJ74: H27 | AL74: H31
B75: ="OK"&IF(C75="faux",0,COUNTIF($C$73:C75,C75)) -> OK0 | C75: FAUX | D75: Pa_1580_808 | E75: 758 | F75: 908 | G75: 1576 | H75: 1580 | J75: 808 | K75: 1580 | L75: 36.5 | M75: 30 | N75: 1 | O75: 160 | W75: H16 | X75: H16 | Y75: H16 | Z75: H19 | AA75: H19 | AB75: H21 | AC75: H21 | AD75: H23 | AE75: H23 | AF75: H23 | AG75: H26 | AH75: H26 | AI75: H27 | AJ75: H27 | AL75: H31
B76: ="OK"&IF(C76="faux",0,COUNTIF($C$73:C76,C76)) -> OK0 | C76: FAUX | D76: Pa_1640_992 | E76: 942 | F76: 1092 | G76: 1636 | H76: 1640 | J76: 992 | K76: 1640 | L76: 36.5 | M76: 30 | N76: 1 | O76: 160 | W76: H16 | X76: H16 | Y76: H16 | Z76: H19 | AA76: H19 | AB76: H21 | AC76: H21 | AD76: H23 | AE76: H23 | AF76: H23 | AG76: H26 | AH76: H26 | AI76: H27 | AJ76: H27 | AL76: H31
B77: ="OK"&IF(C77="faux",0,COUNTIF($C$73:C77,C77)) -> OK0 | C77: FAUX | D77: Pa_1650_992 | E77: 942 | F77: 1092 | G77: 1646 | H77: 1650 | J77: 992 | K77: 1650 | L77: 36.5 | M77: 30 | N77: 1 | O77: 160 | W77: H16 | X77: H16 | Y77: H16 | Z77: H19 | AA77: H19 | AB77: H21 | AC77: H21 | AD77: H23 | AE77: H23 | AF77: H23 | AG77: H26 | AH77: H26 | AI77: H27 | AJ77: H27 | AL77: H31
B78: ="OK"&IF(C78="faux",0,COUNTIF($C$73:C78,C78)) -> OK0 | C78: FAUX | D78: Pa_1660_992 | E78: 942 | F78: 1092 | G78: 1656 | H78: 1660 | J78: 992 | K78: 1660 | L78: 36.5 | M78: 30 | N78: 1 | O78: 160 | W78: H16 | X78: H16 | Y78: H16 | Z78: H19 | AA78: H19 | AB78: H21 | AC78: H21 | AD78: H23 | AE78: H23 | AF78: H23 | AG78: H26 | AH78: H26 | AI78: H27 | AJ78: H27 | AL78: H31
B79: ="OK"&IF(C79="faux",0,COUNTIF($C$73:C79,C79)) -> OK0 | C79: FAUX | D79: Pa_1670_992 | E79: 942 | F79: 1092 | G79: 1666 | H79: 1670 | J79: 992 | K79: 1670 | L79: 36.5 | M79: 30 | N79: 1 | O79: 160 | W79: H16 | X79: H16 | Y79: H16 | Z79: H19 | AA79: H19 | AB79: H21 | AC79: H21 | AD79: H23 | AE79: H23 | AF79: H23 | AG79: H26 | AH79: H26 | AI79: H27 | AJ79: H27 | AL79: H31
B80: ="OK"&IF(C80="faux",0,COUNTIF($C$73:C80,C80)) -> OK0 | C80: =IF($F$8=$AN$38,"FAUX",IF($F$7=$AM$39,"FAUX",IF(AND($C$8>=E80,$C$8<=F80,$C$7>=G80,$C$7<=H80,$C$9>=32),"OK","FAUX"))) -> FAUX | D80: ="Pa_"&K80&"_"&J80&" P33" -> Pa_1675_992 P33 | E80: 942 | F80: 1092 | G80: 1671 | H80: 1675 | J80: 992 | K80: 1675 | L80: 36.5 | M80: 30 | N80: 1 | O80: 160 | T80: H16 | U80: H16 | V80: H16 | W80: H19 | X80: H19 | Y80: H21 | Z80: H21 | AA80: H23 | AB80: H23 | AC80: H23 | AD80: H26 | AE80: H26 | AF80: H27 | AG80: H27 | AI80: H31 | AJ80: H31 | AK80: H31
B81: ="OK"&IF(C81="faux",0,COUNTIF($C$73:C81,C81)) -> OK0 | C81: =IF($F$8=$AN$38,"FAUX",IF($F$7=$AM$39,"FAUX",IF(AND($C$8>=E81,$C$8<=F81,$C$7>=G81,$C$7<=H81,$C$9>=35),"OK","FAUX"))) -> FAUX | D81: Pa_1680_992 | E81: 942 | F81: 1092 | G81: 1676 | H81: 1680 | J81: 992 | K81: 1680 | L81: 36.5 | M81: 30 | N81: 1 | O81: 160 | W81: H16 | X81: H16 | Y81: H16 | Z81: H19 | AA81: H19 | AB81: H21 | AC81: H21 | AD81: H23 | AE81: H23 | AF81: H23 | AG81: H26 | AH81: H26 | AI81: H27 | AJ81: H27 | AL81: H31
B82: ="OK"&IF(C82="faux",0,COUNTIF($C$73:C82,C82)) -> OK0 | C82: =IF($F$8=$AN$38,"FAUX",IF($F$7=$AM$39,"FAUX",IF(AND($C$8>=E82,$C$8<=F82,$C$7>=G82,$C$7<=H82,$C$9>=35),"OK","FAUX"))) -> FAUX | D82: Pa_1686_992 | E82: 942 | F82: 1092 | G82: 1682 | H82: 1686 | J82: 992 | K82: 1686 | L82: 36.5 | M82: 30 | N82: 1 | O82: 160 | W82: H16 | X82: H16 | Y82: H16 | Z82: H19 | AA82: H19 | AB82: H21 | AC82: H21 | AD82: H23 | AE82: H23 | AF82: H23 | AG82: H26 | AH82: H26 | AI82: H27 | AJ82: H27 | AL82: H31
B83: ="OK"&IF(C83="faux",0,COUNTIF($C$73:C83,C83)) -> OK0 | C83: =IF($F$8=$AN$38,"FAUX",IF($F$7=$AM$39,"FAUX",IF(AND($C$8>=E83,$C$8<=F83,$C$7>=G83,$C$7<=H83,$C$9>=35),"OK","FAUX"))) -> FAUX | D83: Pa_1700_992 | E83: 942 | F83: 1092 | G83: 1696 | H83: 1700 | J83: 992 | K83: 1700 | L83: 36.5 | M83: 30 | N83: 1 | O83: 160 | W83: H16 | X83: H16 | Y83: H16 | Z83: H19 | AA83: H19 | AB83: H21 | AC83: H21 | AD83: H23 | AE83: H23 | AF83: H23 | AG83: H26 | AH83: H26 | AI83: H27 | AJ83: H27 | AL83: H31
B84: ="OK"&IF(C84="faux",0,COUNTIF($C$73:C84,C84)) -> OK0 | C84: =IF($F$8=$AN$38,"FAUX",IF(AND($C$8>=E84,$C$8<=F84,$C$7>=G84,$C$7<=H84,$C$9>=30),"OK","FAUX")) -> FAUX | D84: Pa_1665_1020 | E84: 970 | F84: 1120 | G84: 1661 | H84: 1665 | J84: 1020 | K84: 1665 | L84: 36.5 | M84: 30 | N84: 1 | O84: 160 | R84: H16 | S84: H16 | T84: H16 | U84: H19 | V84: H19 | W84: H21 | X84: H21 | Y84: H23 | Z84: H23 | AA84: H23 | AB84: H26 | AC84: H26 | AD84: H27 | AE84: H27 | AG84: H31 | AH84: H31 | AI84: H31
B85: ="OK"&IF(C85="faux",0,COUNTIF($C$73:C85,C85)) -> OK0 | C85: FAUX | D85: Pa_1675_1020 | E85: 970 | F85: 1120 | G85: 1671 | H85: 1675 | J85: 1020 | K85: 1675 | L85: 36.5 | M85: 30 | N85: 1 | O85: 160 | R85: H16 | S85: H16 | T85: H16 | U85: H19 | V85: H19 | W85: H21 | X85: H21 | Y85: H23 | Z85: H23 | AA85: H23 | AB85: H26 | AC85: H26 | AD85: H27 | AE85: H27 | AG85: H31 | AH85: H31 | AI85: H31
B86: ="OK"&IF(C86="faux",0,COUNTIF($C$73:C86,C86)) -> OK0 | C86: FAUX | D86: Pa_1680_1020 | E86: 970 | F86: 1120 | G86: 1676 | H86: 1680 | J86: 1020 | K86: 1680 | L86: 36.5 | M86: 30 | N86: 1 | O86: 160 | R86: H16 | S86: H16 | T86: H16 | U86: H19 | V86: H19 | W86: H21 | X86: H21 | Y86: H23 | Z86: H23 | AA86: H23 | AB86: H26 | AC86: H26 | AD86: H27 | AE86: H27 | AG86: H31 | AH86: H31 | AI86: H31
B87: ="OK"&IF(C87="faux",0,COUNTIF($C$73:C87,C87)) -> OK0 | C87: FAUX | D87: Pa_1685_1020 | E87: 970 | F87: 1120 | G87: 1681 | H87: 1685 | J87: 1020 | K87: 1685 | L87: 36.5 | M87: 30 | N87: 1 | O87: 160 | R87: H16 | S87: H16 | T87: H16 | U87: H19 | V87: H19 | W87: H21 | X87: H21 | Y87: H23 | Z87: H23 | AA87: H23 | AB87: H26 | AC87: H26 | AD87: H27 | AE87: H27 | AG87: H31 | AH87: H31 | AI87: H31
B88: ="OK"&IF(C88="faux",0,COUNTIF($C$73:C88,C88)) -> OK0 | C88: FAUX | D88: Pa_1690_1020 | E88: 970 | F88: 1120 | G88: 1686 | H88: 1690 | J88: 1020 | K88: 1690 | L88: 36.5 | M88: 30 | N88: 1 | O88: 160 | R88: H16 | S88: H16 | T88: H16 | U88: H19 | V88: H19 | W88: H21 | X88: H21 | Y88: H23 | Z88: H23 | AA88: H23 | AB88: H26 | AC88: H26 | AD88: H27 | AE88: H27 | AG88: H31 | AH88: H31 | AI88: H31
B89: ="OK"&IF(C89="faux",0,COUNTIF($C$73:C89,C89)) -> OK0 | C89: FAUX | D89: Pa_1695_1020 | E89: 970 | F89: 1120 | G89: 1691 | H89: 1695 | J89: 1020 | K89: 1695 | L89: 36.5 | M89: 30 | N89: 1 | O89: 160 | R89: H16 | S89: H16 | T89: H16 | U89: H19 | V89: H19 | W89: H21 | X89: H21 | Y89: H23 | Z89: H23 | AA89: H23 | AB89: H26 | AC89: H26 | AD89: H27 | AE89: H27 | AG89: H31 | AH89: H31 | AI89: H31
B90: ="OK"&IF(C90="faux",0,COUNTIF($C$73:C90,C90)) -> OK0 | C90: FAUX | D90: Pa_1700_1020 | E90: 970 | F90: 1120 | G90: 1696 | H90: 1700 | J90: 1020 | K90: 1700 | L90: 36.5 | M90: 30 | N90: 1 | O90: 160 | R90: H16 | S90: H16 | T90: H16 | U90: H19 | V90: H19 | W90: H21 | X90: H21 | Y90: H23 | Z90: H23 | AA90: H23 | AB90: H26 | AC90: H26 | AD90: H27 | AE90: H27 | AG90: H31 | AH90: H31 | AI90: H31
B91: ="OK"&IF(C91="faux",0,COUNTIF($C$73:C91,C91)) -> OK0 | C91: FAUX | D91: Pa_1705_1020 | E91: 970 | F91: 1120 | G91: 1701 | H91: 1705 | J91: 1020 | K91: 1705 | L91: 36.5 | M91: 30 | N91: 1 | O91: 160 | R91: H16 | S91: H16 | T91: H16 | U91: H19 | V91: H19 | W91: H21 | X91: H21 | Y91: H23 | Z91: H23 | AA91: H23 | AB91: H26 | AC91: H26 | AD91: H27 | AE91: H27 | AG91: H31 | AH91: H31 | AI91: H31
B92: ="OK"&IF(C92="faux",0,COUNTIF($C$73:C92,C92)) -> OK0 | C92: FAUX | D92: Pa_1720_1020 | E92: 970 | F92: 1120 | G92: 1716 | H92: 1720 | J92: 1020 | K92: 1720 | L92: 36.5 | M92: 30 | N92: 1 | O92: 160 | R92: H16 | S92: H16 | T92: H16 | U92: H19 | V92: H19 | W92: H21 | X92: H21 | Y92: H23 | Z92: H23 | AA92: H23 | AB92: H26 | AC92: H26 | AD92: H27 | AE92: H27 | AG92: H31 | AH92: H31 | AI92: H31
B93: ="OK"&IF(C93="faux",0,COUNTIF($C$73:C93,C93)) -> OK0 | C93: FAUX | D93: Pa_1740_1020 | E93: 970 | F93: 1120 | G93: 1736 | H93: 1740 | J93: 1020 | K93: 1740 | L93: 36.5 | M93: 30 | N93: 1 | O93: 160 | R93: H16 | S93: H16 | T93: H16 | U93: H19 | V93: H19 | W93: H21 | X93: H21 | Y93: H23 | Z93: H23 | AA93: H23 | AB93: H26 | AC93: H26 | AD93: H27 | AE93: H27 | AG93: H31 | AH93: H31 | AI93: H31
E97: -80 | F97: 150 | G97: -4 | H97: 0
B98: ="OK"&IF(C98="faux",0,COUNTIF($C$39:C98,C98)) -> OK0 | C98: =IF(AND($C$7>=E98,$C$7<=F98,$C$8>=G98,$C$8<=H98,$C$9>=30),"OK","FAUX") -> FAUX | D98: ="DPa_"&J98&"_"&K98 -> DPa__ | E98: =$J98+E$97 -> -80 | F98: =$J98+F$97 -> 150 | G98: =$K98+G$97 -> -4 | H98: =$K98+H$97 -> 0 | R98: H16 | S98: H16 | T98: H16 | U98: H19 | V98: H19 | W98: H21 | X98: H21 | Y98: H23 | Z98: H23 | AA98: H23 | AB98: H26 | AC98: H26 | AD98: H27 | AE98: H27 | AG98: H31 | AH98: H31 | AI98: H31
B99: ="OK"&IF(C99="faux",0,COUNTIF($C$39:C99,C99)) -> OK0 | C99: FAUX | D99: ="DPa_"&J99&"_"&K99 -> DPa__ | E99: =$J99+E$97 -> -80 | F99: 150 | G99: =$K99+G$97 -> -4 | H99: 0 | R99: H16 | S99: H16 | T99: H16 | U99: H19 | V99: H19 | W99: H21 | X99: H21 | Y99: H23 | Z99: H23 | AA99: H23 | AB99: H26 | AC99: H26 | AD99: H27 | AE99: H27 | AG99: H31 | AH99: H31 | AI99: H31
B100: ="OK"&IF(C100="faux",0,COUNTIF($C$39:C100,C100)) -> OK0 | C100: FAUX | D100: DPa__ | E100: -80 | F100: 150 | G100: -4 | H100: 0 | R100: H16 | S100: H16 | T100: H16 | U100: H19 | V100: H19 | W100: H21 | X100: H21 | Y100: H23 | Z100: H23 | AA100: H23 | AB100: H26 | AC100: H26 | AD100: H27 | AE100: H27 | AG100: H31 | AH100: H31 | AI100: H31
B101: ="OK"&IF(C101="faux",0,COUNTIF($C$39:C101,C101)) -> OK0 | C101: FAUX | D101: DPa__ | E101: -80 | F101: 150 | G101: -4 | H101: 0 | R101: H16 | S101: H16 | T101: H16 | U101: H19 | V101: H19 | W101: H21 | X101: H21 | Y101: H23 | Z101: H23 | AA101: H23 | AB101: H26 | AC101: H26 | AD101: H27 | AE101: H27 | AG101: H31 | AH101: H31 | AI101: H31
B102: ="OK"&IF(C102="faux",0,COUNTIF($C$39:C102,C102)) -> OK0 | C102: FAUX | D102: DPa__ | E102: -80 | F102: 150 | G102: -4 | H102: 0 | R102: H16 | S102: H16 | T102: H16 | U102: H19 | V102: H19 | W102: H21 | X102: H21 | Y102: H23 | Z102: H23 | AA102: H23 | AB102: H26 | AC102: H26 | AD102: H27 | AE102: H27 | AG102: H31 | AH102: H31 | AI102: H31
B103: ="OK"&IF(C103="faux",0,COUNTIF($C$39:C103,C103)) -> OK0 | C103: FAUX | D103: DPa__ | E103: -80 | F103: 150 | G103: -4 | H103: 0 | R103: H16 | S103: H16 | T103: H16 | U103: H19 | V103: H19 | W103: H21 | X103: H21 | Y103: H23 | Z103: H23 | AA103: H23 | AB103: H26 | AC103: H26 | AD103: H27 | AE103: H27 | AG103: H31 | AH103: H31 | AI103: H31
B104: ="OK"&IF(C104="faux",0,COUNTIF($C$39:C104,C104)) -> OK0 | C104: FAUX | D104: DPa__ | E104: -80 | F104: 150 | G104: -4 | H104: 0 | R104: H16 | S104: H16 | T104: H16 | U104: H19 | V104: H19 | W104: H21 | X104: H21 | Y104: H23 | Z104: H23 | AA104: H23 | AB104: H26 | AC104: H26 | AD104: H27 | AE104: H27 | AG104: H31 | AH104: H31 | AI104: H31
B105: ="OK"&IF(C105="faux",0,COUNTIF($C$39:C105,C105)) -> OK0 | C105: FAUX | D105: DPa__ | E105: -80 | F105: 150 | G105: -4 | H105: 0 | R105: H16 | S105: H16 | T105: H16 | U105: H19 | V105: H19 | W105: H21 | X105: H21 | Y105: H23 | Z105: H23 | AA105: H23 | AB105: H26 | AC105: H26 | AD105: H27 | AE105: H27 | AG105: H31 | AH105: H31 | AI105: H31
B106: ="OK"&IF(C106="faux",0,COUNTIF($C$39:C106,C106)) -> OK0 | C106: FAUX | D106: DPa__ | E106: -80 | F106: 150 | G106: -4 | H106: 0 | R106: H16 | S106: H16 | T106: H16 | U106: H19 | V106: H19 | W106: H21 | X106: H21 | Y106: H23 | Z106: H23 | AA106: H23 | AB106: H26 | AC106: H26 | AD106: H27 | AE106: H27 | AG106: H31 | AH106: H31 | AI106: H31
B107: ="OK"&IF(C107="faux",0,COUNTIF($C$39:C107,C107)) -> OK0 | C107: FAUX | D107: DPa__ | E107: -80 | F107: 150 | G107: -4 | H107: 0 | R107: H16 | S107: H16 | T107: H16 | U107: H19 | V107: H19 | W107: H21 | X107: H21 | Y107: H23 | Z107: H23 | AA107: H23 | AB107: H26 | AC107: H26 | AD107: H27 | AE107: H27 | AG107: H31 | AH107: H31 | AI107: H31
B108: ="OK"&IF(C108="faux",0,COUNTIF($C$39:C108,C108)) -> OK0 | C108: FAUX | D108: DPa__ | E108: -80 | F108: 150 | G108: -4 | H108: 0 | R108: H16 | S108: H16 | T108: H16 | U108: H19 | V108: H19 | W108: H21 | X108: H21 | Y108: H23 | Z108: H23 | AA108: H23 | AB108: H26 | AC108: H26 | AD108: H27 | AE108: H27 | AG108: H31 | AH108: H31 | AI108: H31
C110: Réf. Etriers | D110: Epaisseur Min | E110: Epaisseur Max
A111: Base étriers | B111: =IF(AND($C$9>=D111,$C$9<=E111),"OK","FAUX") -> FAUX | C111: H16 | D111: 31 | E111: 35
B112: FAUX | C112: H19 | D112: 37 | E112: 38
B113: FAUX | C113: H21 | D113: 39 | E113: 40
B114: FAUX | C114: H23 | D114: 41 | E114: 42
B115: FAUX | C115: H27 | D115: 45 | E115: 46
B116: FAUX | C116: H31 | D116: 49 | E116: 50
F118: Portrait | G118: Paysage
E119: 1 | F119: =IFERROR(VLOOKUP("OK"&$E119,rech_po,3,0),"") ->  | G119: =IFERROR(IF($F$7="OUI",VLOOKUP("OK"&$E119,rech_pa_hc,3,0),VLOOKUP("OK"&$E119,rech_pa,3,0)),"") -> 
E120: 2 | F120: =IFERROR(VLOOKUP("OK"&$E120,rech_po,3,0),"") ->  | G120: =IFERROR(IF($F$7="OUI",VLOOKUP("OK"&$E120,rech_pa_hc,3,0),VLOOKUP("OK"&$E120,rech_pa,3,0)),"") -> 
E121: 3 | F121: =IFERROR(VLOOKUP("OK"&$E121,rech_po,3,0),"") ->  | G121: =IFERROR(IF($F$7="OUI",VLOOKUP("OK"&$E121,rech_pa_hc,3,0),VLOOKUP("OK"&$E121,rech_pa,3,0)),"") -> 
E122: 4 | F122: =IFERROR(VLOOKUP("OK"&$E122,rech_po,3,0),"") ->  | G122: =IFERROR(IF($F$7="OUI",VLOOKUP("OK"&$E122,rech_pa_hc,3,0),VLOOKUP("OK"&$E122,rech_pa,3,0)),"") -> 
E123: 5 | F123: =IFERROR(VLOOKUP("OK"&$E123,rech_po,3,0),"") ->  | G123: =IFERROR(IF($F$7="OUI",VLOOKUP("OK"&$E123,rech_pa_hc,3,0),VLOOKUP("OK"&$E123,rech_pa,3,0)),"") -> 

Sheet Feuil2 (hidden)
A1: Portrait | B1: feuil2!C1
A2: Paysage | B2: feuil2!C2
